Workbook

Sheet schema offerta
A1: Dettaglio offerta servizio di supporto ufficio tributi
A3: Imposta comunale sulla pubblicità, diritti pubbliche affissioni e COSAP
A4: descrizione | C4: base d'asto | D4: offerta | F4: IVA | G4: costo totale
A5: Costo una tantum di start-up per recupero archivi e creazione iniziale banche-dati | C5: 5500 | F5: =C5*0.22 -> 1210 | G5: =C5+F5 -> 6710
A6: Corrispettivo periodo 2018/2020 | C6: 24000 | F6: =C6*0.22 -> 5280 | G6: =C6+F6 -> 29280
A7: Totale | C7: =SUM(C5:C6) -> 29500 | D7: =SUM(D5:E6) -> 0 | F7: =SUM(F5:F6) -> 6490 | G7: =SUM(G5:G6) -> 35990
A9: IMU e TASI
A10: descrizione | C10: base d'asto | D10: offerta | F10: IVA | G10: costo totale
A11: Costo una tantum di start-up per recupero archivi e creazione iniziale banche-dati | C11: 5500 | F11: =C11*0.22 -> 1210 | G11: =C11+F11 -> 6710
A12: Corrispettivo periodo 2018/2020 | C12: 12000 | F12: =C12*0.22 -> 2640 | G12: =C12+F12 -> 14640
A13: Aggio percentuale sul riscosso da recupero evasione (20% base d'asta) | B13: =4000/20%/3 -> 6666.666667 | C13: =B13*0.2*3 -> 4000 | E13: =D13*B13*3 -> 0 | F13: =C13*0.22 -> 880 | G13: =C13+F13 -> 4880
A14: Totale | C14: =SUM(C11:C13) -> 21500 | D14: =SUM(D11:E12,E13) -> 0 | F14: =SUM(F11:F13) -> 4730 | G14: =SUM(G11:G13) -> 26230
A16: TARI
A17: descrizione | C17: base d'asto | D17: offerta | F17: IVA | G17: costo totale
A18: Corrispettivo periodo 2018/2020 | C18: 12000 | F18: =C18*0.22 -> 2640 | G18: =C18+F18 -> 14640
A19: Aggio percentuale sul riscosso da recupero evasione (20% base d'asta) | B19: =C19/20%/3 -> 13333.33333 | C19: 8000 | E19: =D19*B19*3 -> 0 | F19: =C19*0.22 -> 1760 | G19: =C19+F19 -> 9760
A20: Totale | C20: =SUM(C18:C19) -> 20000 | D20: =SUM(D18,E19) -> 0 | F20: =SUM(F18:F19) -> 4400 | G20: 24400
A22: Riscossione coattiva
A23: descrizione | C23: base d'asto | D23: offerta | F23: IVA | G23: costo totale
A24: Corrispettivo periodo 2018/2020 | C24: 5500 | F24: =C24*0.22 -> 1210 | G24: =C24+F24 -> 6710
A25: Aggio percentuale sul riscosso (30% base d'asta) | B25: =C25/30%/3 -> 20000 | C25: 18000 | E25: =D25*B25*3 -> 0 | F25: =C25*0.22 -> 3960 | G25: =C25+F25 -> 21960
A26: Totale | C26: =SUM(C24:C25) -> 23500 | D26: =SUM(D24,E25) -> 0 | F26: =SUM(F24:F25) -> 5170 | G26: 28670
A28: Segnalazioni qualificate
A29: descrizione | C29: base d'asto | D29: offerta | F29: IVA | G29: costo totale
A30: Corrispettivo periodo 2018/2020 | C30: 0 | D30: 0 | F30: =C30*0.22 -> 0 | G30: =C30+F30 -> 0
A31: Aggio percentuale sul riscosso (40% base d'asta) | B31: =C31/40%/3 -> 25000 | C31: 30000 | E31: =D31*B31*3 -> 0 | F31: =C31*0.22 -> 6600 | G31: =C31+F31 -> 36600
A32: Totale | C32: =SUM(C30:C31) -> 30000 | D32: =SUM(D30,E31) -> 0 | F32: =SUM(F30:F31) -> 6600 | G32: 36600
A34: Totale
A35: descrizione | C35: base d'asto | D35: offerta | F35: IVA | G35: costo totale
A36: Costo una tantum di start-up per recupero archivi e creazione iniziale banche-dati | C36: =SUM(C5,C11) -> 11000 | D36: =SUM(D5,D11) -> 0 | F36: =C36*0.22 -> 2420 | G36: =C36+F36 -> 13420
A37: Corrispettivo periodo 2018/2020 | C37: =SUM(C6,C12,C18,C24,C30) -> 53500 | D37: =SUM(D6,D12,D18,D24) -> 0 | F37: =C37*0.22 -> 11770 | G37: =C37+F37 -> 65270
A38: Aggio percentuale sul riscosso | C38: =SUM(C13,C19,C25,C31) -> 60000 | D38: =SUM(E13,E19,E25,E31) -> 0 | F38: =C38*0.22 -> 13200 | G38: =C38+F38 -> 73200
A39: Totale | C39: =SUM(C36:C38) -> 124500 | D39: =SUM(D36:E38) -> 0 | F39: =SUM(F36:F38) -> 27390 | G39: =SUM(G36:G38) -> 151890 | H39: =G39/3 -> 50630
